fUST/lending_fUST_20250328
["ID","MTS","AMOUNT","RATE_DAILY","PERIOD"]
[356771002,1743148250586,-526.75,0.00034543,10]
[356771003,1743148250595,-662.11,0.00034543,10]
[356771004,1743148250604,-500.0,0.00034543,10]
[356771005,1743148250614,-500.0,0.00034543,10]
[356771006,1743148250624,-500.0,0.00034543,10]
[356771007,1743148250633,-500.0,0.00034543,10]
[356771008,1743148250642,-500.0,0.00034543,10]
[356771009,1743148250652,-500.0,0.00034543,10]
[356771010,1743148250661,-500.0,0.00034543,10]
[356771011,1743148250671,-1954.53,0.00034543,10]
[356771012,1743148250680,-531.61127374,0.00034543,10]
[356771013,1743148250690,-500.0,0.00034543,10]
[356771014,1743148250699,-181.25220484,0.00034543,10]
[356771015,1743148250709,-500.0,0.00034543,10]
[356771016,1743148250718,-500.0,0.00034543,10]
[356771017,1743148250727,-500.0,0.00034543,10]
[356771018,1743148250736,-500.0,0.00034543,10]
[356771019,1743148250746,-500.0,0.00034543,10]
[356771020,1743148250756,-579.97036351,0.00034543,10]
[356771021,1743148250765,-1190.58,0.00034543,10]
[356771022,1743148250775,-500.0,0.00034543,10]
[356771023,1743148250785,-829.06,0.00034543,2]
[356771024,1743148250795,-574.58852769,0.00034543,10]
[356771025,1743148250804,-500.0,0.00034543,10]
[356771026,1743148250814,-500.0,0.00034543,10]
[356771027,1743148250826,-500.0,0.00034543,7]
[356771028,1743148250835,-500.0,0.00034543,10]
[356771029,1743148250844,-500.0,0.00034543,10]
[356771030,1743148250855,-561.62,0.00034543,10]
[356771031,1743148250865,-500.0,0.00034543,10]
[356771032,1743148250874,-500.0,0.00034543,10]
[356771033,1743148250884,-500.0,0.00034543,10]
[356771034,1743148250894,-500.0,0.00034543,10]
[356771035,1743148250904,-500.0,0.00034543,10]
[356771036,1743148250913,-500.0,0.00034543,10]
[356771037,1743148250922,-1606.48,0.00034543,10]
[356771038,1743148250932,-724.03,0.00034543,10]
[356771039,1743148250941,-500.0,0.00034543,10]
[356771040,1743148250950,-500.0,0.00034543,10]
[356771041,1743148250960,-500.0,0.00034543,10]
[356771042,1743148250969,-500.0,0.00034543,10]
[356771043,1743148250978,-632.8712833,0.00034543,10]
[356771044,1743148250989,-691.24,0.00034543,10]
[356771045,1743148250999,-500.0,0.00034543,10]
[356771046,1743148251009,-500.0,0.00034543,10]
[356771047,1743148251018,-500.0,0.00034543,10]
[356771048,1743148251029,-500.0,0.00034543,10]
[356771049,1743148251040,-297.81217436,0.00034543,10]
[356771050,1743148251049,-500.0,0.00034543,10]
[356771051,1743148251058,-500.0,0.00034543,10]
[356771052,1743148251068,-500.0,0.00034543,10]
[356771053,1743148251078,-500.0,0.00034543,10]
[356771054,1743148251088,-500.0,0.00034543,10]
[356771055,1743148251097,-500.0,0.00034543,2]
[356771056,1743148251106,-594.46,0.00034543,10]
[356771057,1743148251116,-1837.23,0.00034543,10]
[356771058,1743148251125,-500.0,0.00034543,10]
[356771059,1743148251135,-500.0,0.00034543,10]
[356771060,1743148251144,-500.0,0.00034543,10]
[356771061,1743148251153,-981.77,0.00034543,10]
[356771062,1743148251163,-623.79,0.00034543,10]
[356771063,1743148251172,-500.0,0.00034543,10]
[356771064,1743148251181,-500.0,0.00034543,10]
[356771065,1743148251191,-263.28568158,0.00034543,10]
[356771066,1743148251200,-500.0,0.00034543,10]
[356771067,1743148251209,-500.0,0.00034543,10]
[356771068,1743148251219,-500.0,0.00034543,10]
[356771069,1743148251229,-500.0,0.00034543,10]
[356771070,1743148251239,-653.36,0.00034543,10]
[356771071,1743148251250,-500.0,0.00034543,10]
[356771072,1743148251259,-1227.48,0.00034543,10]
[356771073,1743148251269,-525.69,0.00034543,10]
[356771074,1743148251279,-1067.98,0.00034543,10]
[356771075,1743148251289,-1484.58,0.00034543,10]
[356771076,1743148251299,-500.0,0.00034543,10]
[356771077,1743148251310,-500.0,0.00034543,10]
[356771078,1743148251321,-500.0,0.00034543,10]
[356771079,1743148251330,-500.0,0.00034543,10]
[356771080,1743148251340,-500.0,0.00034543,10]
[356771081,1743148251349,-500.0,0.00034543,10]
[356771082,1743148251359,-681.16,0.00034543,10]
[356771083,1743148251368,-500.0,0.00034543,10]
[356771084,1743148251378,-500.0,0.00034543,10]
[356771085,1743148251387,-500.0,0.00034543,10]
[356771086,1743148251396,-641.55,0.00034543,10]
[356771087,1743148251406,-300.0,0.00034543,30]
[356771088,1743148251415,-500.0,0.00034543,10]
[356771089,1743148251425,-500.0,0.00034543,10]
[356771090,1743148251434,-500.0,0.00034543,10]
[356771091,1743148251444,-500.0,0.00034543,10]
[356771092,1743148251569,-500.0,0.00034543,10]
[356771093,1743148251579,-500.0,0.00034543,10]
[356771094,1743148251588,-1396.27,0.00034543,10]
[356771095,1743148251598,-500.0,0.00034543,10]
[356771096,1743148251607,-500.0,0.00034543,10]
[356771097,1743148251616,-814.93,0.00034543,10]
[356771098,1743148251625,-500.0,0.00034543,10]
[356771099,1743148251635,-500.0,0.00034543,10]
[356771100,1743148251645,-235.55089153,0.00034543,10]
[356771101,1743148251654,-500.0,0.00034543,10]
[356771102,1743148251663,-872.52,0.00034543,10]
[356771103,1743148251674,-500.0,0.00034543,10]
[356771104,1743148251684,-492.10416735,0.00034543,10]
[356771105,1743148251693,-548.57,0.00034543,10]
[356771106,1743148251702,-620.27,0.00034543,10]
[356771107,1743148251712,-702.88,0.00034543,10]
[356771108,1743148251720,-775.65,0.00034543,10]
[356771109,1743148251731,-500.0,0.00034543,10]
[356771110,1743148251741,-500.0,0.00034543,10]
[356771111,1743148251750,-2325.15,0.00034543,10]
[356771112,1743148251759,-500.0,0.00034543,10]
[356771113,1743148251768,-500.0,0.00034543,10]
[356771114,1743148251777,-500.0,0.00034543,10]
[356771115,1743148251786,-500.0,0.00034543,10]
[356771116,1743148251796,-574.43,0.00034543,10]
[356771117,1743148251805,-1443.95,0.00034543,10]
[356771118,1743148251814,-500.0,0.00034543,10]
[356771119,1743148251825,-1841.73,0.00034543,10]
[356771120,1743148251834,-710.59,0.00034543,10]
[356771121,1743148251843,-500.0,0.00034543,10]
[356771122,1743148251852,-3255.8,0.00034543,10]
[356771123,1743148251861,-622.77,0.00034543,10]
[356771124,1743148251871,-500.0,0.00034543,2]
[356771125,1743148251880,-1705.7,0.00034543,10]
[356771126,1743148251890,-543.24948754,0.00034543,10]
[356771127,1743148251900,-500.0,0.00034543,10]
[356771128,1743148251909,-3429.33,0.00034543,10]
[356771129,1743148251918,-640.84,0.00034543,10]
[356771130,1743148251928,-1653.51,0.00034543,10]
[356771131,1743148251937,-1138.45,0.00034543,10]
[356771132,1743148251948,-500.0,0.00034543,10]
[356771133,1743148251957,-507.89,0.00034543,10]
[356771134,1743148251967,-500.0,0.00034543,10]
[356771135,1743148251977,-3523.28,0.00034543,10]
[356771136,1743148251987,-1157.78,0.00034543,10]
[356771137,1743148251996,-602.02,0.00034543,10]
[356771138,1743148252006,-500.0,0.00034543,10]
[356771139,1743148252015,-500.0,0.00034543,10]
[356771140,1743148252025,-500.0,0.00034543,10]
[356771141,1743148252034,-500.0,0.00034543,10]
[356771142,1743148252044,-554.74,0.00034543,10]
[356771143,1743148252053,-500.0,0.00034543,10]
[356771144,1743148252063,-500.0,0.00034543,10]
[356771145,1743148252073,-558.67216716,0.00034543,10]
[356771146,1743148252082,-1550.33,0.00034543,10]
[356771147,1743148252092,-500.0,0.00034543,2]
[356771148,1743148252101,-500.0,0.00034543,10]
[356771149,1743148252111,-1834.29,0.00034543,10]
[356771150,1743148252121,-517.73,0.00034543,10]
[356771151,1743148252131,-500.0,0.00034543,10]
[356771152,1743148252140,-500.0,0.00034543,10]
[356771153,1743148252152,-500.0,0.00034543,10]
[356771154,1743148252162,-547.89,0.00034543,10]
[356771155,1743148252172,-167.95552003,0.00034543,10]
[356771156,1743148252182,-500.0,0.00034543,10]
[356771157,1743148252192,-3897.75,0.00034543,10]
[356771158,1743148252202,-500.0,0.00034543,10]
[356771159,1743148252211,-758.24,0.00034543,10]
[356771160,1743148252220,-771.62,0.00034543,10]
[356771161,1743148252230,-500.0,0.00034543,10]
[356771162,1743148252241,-1985.7,0.00034543,10]
[356771163,1743148252252,-500.0,0.00034543,10]
[356771164,1743148252262,-527.68,0.00034543,10]
[356771165,1743148252271,-568.05,0.00034543,10]
[356771166,1743148252281,-500.0,0.00034543,10]
[356771167,1743148252292,-500.0,0.00034543,10]
[356771168,1743148252302,-563.8262389,0.00034543,10]
[356771169,1743148252311,-789.42,0.00034543,10]
[356771170,1743148252320,-500.0,0.00034543,10]
[356771171,1743148252331,-500.0,0.00034543,10]
[356771172,1743148252340,-500.0,0.00034543,10]
[356771173,1743148252350,-500.0,0.00034543,10]
[356771174,1743148252360,-500.0,0.00034543,10]
[356771175,1743148252369,-859.96,0.00034543,10]
[356771176,1743148252380,-414.7,0.00034543,10]
[356771177,1743148252390,-500.0,0.00034543,10]
[356771178,1743148252399,-500.0,0.00034543,10]
[356771179,1743148252409,-508.78,0.00034543,7]
[356771180,1743148252418,-548.44,0.00034543,10]
[356771181,1743148252428,-1002.39,0.00034543,10]
[356771182,1743148252438,-846.65,0.00034543,10]
[356771183,1743148252448,-2152.68,0.00034543,10]
[356771184,1743148252458,-3044.48,0.00034543,10]
[356771185,1743148252467,-500.0,0.00034543,10]
[356771186,1743148252477,-1432.52,0.00034543,10]
[356771187,1743148252487,-500.0,0.00034543,10]
[356771188,1743148252496,-759.52,0.00034543,10]
[356771189,1743148252505,-500.0,0.00034543,10]
[356771190,1743148252515,-712.48,0.00034543,10]
[356771191,1743148252525,-1860.67,0.00034543,10]
[356771192,1743148252534,-2051.44,0.00034543,10]
[356771193,1743148252544,-500.0,0.00034543,10]
[356771194,1743148252554,-500.0,0.00034543,10]
[356771195,1743148252564,-1816.73,0.00034543,10]
[356771196,1743148252574,-542.82320469,0.00034543,10]
[356771197,1743148252583,-500.0,0.00034543,10]
[356771198,1743148252593,-500.0,0.00034543,10]
[356771199,1743148252602,-984.43,0.00034543,10]
[356771200,1743148252611,-500.0,0.00034543,10]
[356771201,1743148252621,-2218.15,0.00034543,10]
[356771202,1743148252631,-500.0,0.00034543,10]
[356771203,1743148252640,-500.0,0.00034543,10]
[356771204,1743148252649,-500.0,0.00034543,10]
[356771205,1743148252658,-500.0,0.00034543,10]
[356771206,1743148252668,-1685.1,0.00034543,10]
[356771207,1743148252677,-500.0,0.00034543,10]
[356771208,1743148252687,-1447.45,0.00034543,10]
[356771209,1743148252696,-500.0,0.00034543,10]
[356771210,1743148252705,-500.0,0.00034543,10]
[356771211,1743148252714,-500.0,0.00034543,10]
[356771212,1743148252723,-500.0,0.00034543,10]
[356771213,1743148252734,-500.0,0.00034543,10]
[356771214,1743148252744,-907.76,0.00034543,10]
[356771215,1743148252753,-500.0,0.00034543,10]
[356771216,1743148252763,-500.0,0.00034543,10]
[356771217,1743148252772,-500.0,0.00034543,10]
[356771218,1743148252781,-500.0,0.00034543,10]
[356771219,1743148252791,-500.0,0.00034543,10]
[356771220,1743148252800,-500.0,0.00034543,10]
[356771221,1743148252810,-528.76806687,0.00034543,10]
[356771222,1743148252820,-500.0,0.00034543,10]
[356771223,1743148252829,-500.0,0.00034543,10]
[356771224,1743148252839,-500.0,0.00034547,10]
[356771225,1743148252848,-502.38371647,0.00034547,10]
[356771226,1743148252857,-500.0,0.00034547,10]
[356771227,1743148252867,-500.0,0.00034547,10]
[356771228,1743148252876,-500.0,0.00034547,10]
[356771229,1743148252885,-500.0,0.00034547,10]
[356771230,1743148252894,-500.0,0.00034547,10]
[356771231,1743148252903,-500.0,0.00034547,10]
[356771232,1743148252912,-500.0,0.00034547,10]
[356771233,1743148252922,-500.0,0.00034547,10]
[356771234,1743148252930,-500.0,0.00034547,10]
[356771235,1743148252939,-500.0,0.00034547,10]
[356771236,1743148252949,-500.0,0.00034547,10]
[356771237,1743148252958,-500.0,0.00034547,10]
[356771238,1743148252967,-500.0,0.00034547,10]
[356771239,1743148252977,-500.0,0.00034547,10]
[356771240,1743148252986,-500.0,0.00034547,10]
[356771241,1743148252995,-500.0,0.00034547,10]
[356771242,1743148253005,-500.0,0.00034547,10]
[356771243,1743148253014,-613.09716784,0.00034564,5]
[356771244,1743148253023,-500.0,0.00034573,5]
[356771245,1743148253032,-255.02260366,0.00034579,2]
[356771246,1743148253041,-529.02517344,0.00034659,2]
[356771247,1743148253050,-206.62933306,0.000347,12]
[356771248,1743148253060,-569.46,0.00034791,10]
[356771249,1743148253070,-500.0,0.00034791,10]
[356771250,1743148253080,-500.0,0.00034791,10]
[356771251,1743148253089,-533.41,0.00034791,10]
[356771252,1743148253098,-500.0,0.00034791,10]
[356771253,1743148253107,-500.0,0.00034791,10]
[356771254,1743148253117,-500.0,0.00034791,10]
[356771255,1743148253126,-1561.15,0.00034791,10]
[356771256,1743148253138,-510.25961024,0.00034791,10]
[356771257,1743148253149,-500.0,0.00034791,10]
[356771258,1743148253158,-552.52,0.00034791,10]
[356771259,1743148253168,-853.64,0.00034791,10]
[356771260,1743148253177,-240.69762803,0.00034791,10]
[356771261,1743148253186,-500.0,0.00034791,10]
[356771262,1743148253196,-500.0,0.00034791,10]
[356771263,1743148253206,-660.61,0.00034791,10]
[356771264,1743148253216,-457.35356353,0.00034791,10]
[356771265,1743148253225,-318.39667732,0.00034791,10]
[356771266,1743148253235,-473.37552769,0.00034791,10]
[356771267,1743148253244,-539.58285148,0.00034791,10]
[356771268,1743148253258,-500.0,0.00034791,10]
[356771269,1743148253267,-507.99,0.00034791,10]
[356771270,1743148253276,-500.0,0.00034791,10]
[356771271,1743148253285,-948.36,0.00034791,10]
[356771272,1743148253295,-278.36,0.00034791,7]
[356771273,1743148253304,-500.0,0.00034791,10]
[356771274,1743148253314,-500.0,0.00034791,10]
[356771275,1743148253323,-651.57,0.00034791,10]
[356771276,1743148253334,-723.24,0.00034791,10]
[356771277,1743148253456,-1080.58,0.00034791,10]
[356771278,1743148253467,-587.67,0.00034791,10]
[356771279,1743148253477,-650.28,0.00034791,10]
[356771280,1743148253486,-500.0,0.00034791,10]
[356771281,1743148253495,-500.0,0.00034791,10]
[356771282,1743148253505,-500.0,0.00034791,10]
[356771283,1743148253514,-1052.08,0.00034791,10]
[356771284,1743148253523,-500.0,0.00034791,10]
[356771285,1743148253533,-500.0,0.00034791,10]
[356771286,1743148253543,-510.69,0.00034791,10]
[356771287,1743148253552,-612.72,0.00034791,10]
[356771288,1743148253562,-500.0,0.00034791,10]
[356771289,1743148253573,-500.0,0.00034791,10]
[356771290,1743148253582,-642.15,0.00034791,10]
[356771291,1743148253592,-526.11243691,0.00034791,10]
[356771292,1743148253602,-500.0,0.00034791,10]
[356771293,1743148253611,-500.0,0.00034791,10]
[356771294,1743148253620,-628.85,0.00034791,10]
[356771295,1743148253630,-386.89805612,0.00034791,10]
[356771296,1743148253639,-337.36603895,0.00034791,10]
[356771297,1743148253648,-898.08,0.00034791,10]
[356771298,1743148253658,-26821.63,0.00034791,10]
[356771299,1743148253668,-2100.07,0.00034791,10]
[356771300,1743148253677,-500.0,0.00034791,10]
[356771301,1743148253687,-524.86022531,0.00034791,10]
[356771302,1743148253697,-1815.25,0.00034791,10]
[356771303,1743148253706,-641.84,0.00034791,10]
[356771304,1743148253715,-500.0,0.00034791,10]
[356771305,1743148253724,-7388.84,0.00034791,10]
[356771306,1743148253735,-500.0,0.00034791,10]
[356771307,1743148253744,-500.0,0.00034791,10]
[356771308,1743148253755,-569.71011872,0.00034791,10]
[356771309,1743148253764,-500.0,0.00034791,10]
[356771310,1743148253775,-500.0,0.00034791,10]
[356771311,1743148253788,-500.0,0.00034791,10]
[356771312,1743148253798,-500.0,0.00034791,10]
[356771313,1743148253810,-508.48,0.00034791,10]
[356771314,1743148253821,-500.0,0.00034791,10]
[356771315,1743148253830,-14816.56,0.00034791,10]
[356771316,1743148253840,-500.0,0.00034791,10]
[356771317,1743148253850,-747.38,0.00034791,10]
[356771318,1743148253860,-2079.53,0.00034791,10]
[356771319,1743148253870,-954.66,0.00034791,10]
[356771320,1743148253879,-2397.66,0.00034791,10]
[356771321,1743148253890,-500.0,0.00034791,10]
[356771322,1743148253899,-928.13,0.00034791,10]
[356771323,1743148253908,-1209.98,0.00034791,10]
[356771324,1743148253918,-3271.65,0.00034791,10]
[356771325,1743148253927,-500.0,0.00034791,7]
[356771326,1743148253936,-1416.24,0.00034791,10]
[356771327,1743148253946,-500.0,0.00034791,10]
[356771328,1743148253955,-992.81,0.00034791,10]
[356771329,1743148253964,-7429.72,0.00034791,10]
[356771330,1743148253974,-500.0,0.00034791,10]
[356771331,1743148253983,-11156.16,0.00034791,10]
[356771332,1743148253992,-500.0,0.00034791,10]
[356771333,1743148254001,-500.0,0.00034791,10]
[356771334,1743148254011,-500.0,0.00034791,10]
[356771335,1743148254021,-559.55225592,0.00034791,10]
[356771336,1743148254030,-871.61,0.00034791,10]
[356771337,1743148254039,-500.0,0.00034791,10]
[356771338,1743148254048,-500.0,0.00034791,10]
[356771339,1743148254058,-584.58,0.00034791,10]
[356771340,1743148254067,-5064.13,0.00034791,10]
[356771341,1743148254078,-500.0,0.00034791,10]
[356771342,1743148254087,-3243.51,0.00034791,10]
[356771343,1743148254095,-1403.41,0.00034791,10]
[356771344,1743148254105,-642.48591861,0.00034791,10]
[356771345,1743148254115,-500.0,0.00034791,10]
[356771346,1743148254124,-529.59646704,0.00034791,10]
[356771347,1743148254133,-1090.03,0.00034791,10]
[356771348,1743148254142,-500.0,0.00034792,10]
[356771349,1743148254152,-6730.68,0.00034792,10]
[356771350,1743148254161,-13435.43,0.00034792,10]
[356771351,1743148254170,-8800.74,0.00034792,10]
[356771352,1743148254180,-4512.03,0.00034792,10]
[356771353,1743148254189,-500.0,0.00034792,10]
[356771354,1743148254199,-500.0,0.00034792,10]
[356771355,1743148254208,-4357.6,0.00034792,10]
[356771356,1743148254218,-566.87866288,0.00034792,10]
[356771357,1743148254227,-2503.66,0.00034792,10]
[356771358,1743148254237,-1163.76,0.00034792,10]
[356771359,1743148254251,-23111.16,0.00034792,10]
[356771360,1743148254261,-3238.32,0.00034792,10]
[356771361,1743148254270,-577.30936567,0.00034792,10]
[356771362,1743148254279,-745.24,0.00034792,10]
[356771363,1743148254289,-1350.11,0.00034792,10]
[356771364,1743148254300,-858.52,0.00034792,10]
[356771365,1743148254310,-5841.36,0.00034792,10]
[356771366,1743148254323,-1201.3,0.00034792,10]
[356771367,1743148254332,-5843.07,0.00034792,10]
[356771368,1743148254342,-5982.42,0.00034792,10]
[356771369,1743148254351,-697.17,0.00034792,10]
[356771370,1743148254360,-3020.36,0.00034792,10]
[356771371,1743148254370,-1537.84,0.00034792,10]
[356771372,1743148254379,-5768.18,0.00034792,10]
[356771373,1743148254389,-534.55,0.00034792,10]
[356771374,1743148254399,-684.81,0.00034792,10]
[356771375,1743148254409,-1291.13,0.00034792,10]
[356771376,1743148254418,-2464.48,0.00034792,10]
[356771377,1743148254427,-930.48,0.00034792,10]
[356771378,1743148254436,-854.11,0.00034792,10]
[356771379,1743148254445,-2339.88,0.00034792,10]
[356771380,1743148254455,-500.0,0.00034792,10]
[356771381,1743148254465,-500.0,0.00034792,10]
[356771382,1743148254475,-3861.6,0.00034792,10]
[356771383,1743148254484,-500.0,0.00034792,10]
[356771384,1743148254493,-2207.35,0.00034792,10]
[356771385,1743148254503,-865.63,0.00034794,10]
[356771386,1743148254512,-500.0,0.00034794,10]
[356771387,1743148254522,-1150.73,0.00034794,10]
[356771388,1743148254531,-509.419749,0.00034794,10]
[356771389,1743148254540,-456.47273163,0.00034794,10]
[356771390,1743148254550,-500.0,0.00034794,10]
[356771391,1743148254559,-500.0,0.00034794,10]
[356771392,1743148254569,-143.42072914,0.00034794,10]
[356771393,1743148254943,-356.57927086,0.00034794,10]
[356771394,1743148254953,-1720.12,0.00034794,10]
[356771395,1743148254962,-517.96767951,0.00034794,10]
[356771396,1743148254972,-513.22129983,0.00034794,10]
[356771397,1743148254982,-500.0,0.00034794,10]
[356771398,1743148254991,-702.85,0.00034794,10]
[356771399,1743148255001,-500.0,0.00034794,10]
[356771400,1743148255011,-500.0,0.00034794,10]
[356771401,1743148255021,-1022.49,0.00034794,10]
[356771402,1743148255030,-1380.03,0.00034794,10]
[356771403,1743148255039,-509.34,0.00034794,10]
[356771404,1743148255049,-500.0,0.00034794,10]
[356771405,1743148255058,-1171.39,0.00034794,10]
[356771406,1743148255067,-500.0,0.00034794,10]
[356771407,1743148255079,-1105.92,0.00034794,10]
[356771408,1743148255088,-1258.07,0.00034794,10]
[356771409,1743148255098,-528.45,0.00034794,10]
[356771410,1743148255107,-500.0,0.00034794,10]
[356771411,1743148255117,-500.0,0.00034794,10]
[356771412,1743148255126,-1191.53,0.00034794,10]
[356771413,1743148255135,-1773.0,0.00034794,10]
[356771414,1743148255145,-500.0,0.00034794,10]
[356771415,1743148255154,-500.0,0.00034794,10]
[356771416,1743148255163,-630.28,0.00034794,10]
[356771417,1743148255173,-879.44,0.00034794,10]
[356771418,1743148255182,-1792.0,0.00034794,10]
[356771419,1743148255192,-1683.92,0.00034794,10]
[356771420,1743148255201,-500.0,0.00034794,10]
[356771421,1743148255211,-2814.94,0.00034794,10]
[356771422,1743148255221,-1035.81,0.00034794,10]
[356771423,1743148255230,-794.04,0.00034794,10]
[356771424,1743148255239,-54.1593721,0.00034794,10]
[356771425,1743148256060,-318.91756616,0.00033968,7]
[356771426,1743148256075,-6491.13,0.0003397,10]
[356771427,1743148256091,-6491.13,0.00034244,10]
[356771428,1743148256105,-500.0,0.00034791,10]
[356771429,1743148256120,-500.0,0.00034793,7]
[356771430,1743148256134,-244.14098771,0.00034793,7]
[356771431,1743148256149,-445.8406279,0.00034794,10]
[356771432,1743148256164,-521.29,0.00034794,10]
[356771433,1743148256178,-500.0,0.00034794,10]
[356771434,1743148256192,-500.0,0.00034794,10]
[356771435,1743148256207,-500.0,0.00034794,10]
[356771436,1743148256221,-517.23,0.00034794,10]
[356771437,1743148256236,-1079.22,0.00034794,10]
[356771438,1743148256256,-962.86,0.00034794,10]
[356771439,1743148256270,-1692.67,0.00034794,10]
[356771440,1743148256285,-1528.73,0.00034794,10]
[356771441,1743148256299,-889.71,0.00034794,10]
[356771442,1743148256314,-617.52,0.00034794,10]
[356771443,1743148256330,-706.65,0.00034794,10]
[356771444,1743148256344,-1543.72,0.00034794,10]
[356771445,1743148256359,-620.82,0.00034794,10]
[356771446,1743148256374,-1207.46,0.00034794,10]
[356771447,1743148256389,-500.0,0.00034794,10]
[356771448,1743148256405,-500.0,0.00034794,10]
[356771449,1743148256420,-500.0,0.00034794,10]
[356771450,1743148256435,-558.75,0.00034794,10]
[356771451,1743148256450,-521.55399396,0.00034794,10]
[356771452,1743148256464,-27126.18,0.00034794,10]
[356771453,1743148256474,-823.6,0.00034794,10]
[356771454,1743148256484,-696.75,0.00034794,10]
[356771455,1743148256494,-5346.95,0.00034794,10]
[356771456,1743148256503,-500.0,0.00034794,10]
[356771457,1743148256513,-1237.24,0.00034794,10]
[356771458,1743148256523,-1767.16,0.00034794,10]
[356771459,1743148256533,-1531.36,0.00034794,10]
[356771460,1743148256543,-14273.85,0.00034794,10]
[356771461,1743148256553,-667.34,0.00034794,10]
[356771462,1743148256563,-500.0,0.00034794,10]
[356771463,1743148256575,-11632.1,0.00034794,10]
[356771464,1743148256585,-500.0,0.00034794,10]
[356771465,1743148256594,-604.27,0.00034794,10]
[356771466,1743148256604,-500.0,0.00034794,10]
[356771467,1743148256614,-1041.99,0.00034794,10]
[356771468,1743148256623,-500.0,0.00034794,10]
[356771469,1743148256633,-1456.73,0.00034794,10]
[356771470,1743148256643,-2005.28,0.00034794,10]
[356771471,1743148256653,-522.2,0.00034794,10]
[356771472,1743148256663,-500.0,0.00034794,10]
[356771473,1743148256672,-2940.55,0.00034794,10]
[356771474,1743148256682,-8065.85,0.00034794,10]
[356771475,1743148256692,-2358.14,0.00034794,10]
[356771476,1743148256701,-500.0,0.00034794,10]
[356771477,1743148256711,-222505.11682427,0.00034794,7]
[356771478,1743148256723,-2259.98319772,0.00034794,7]
[356771479,1743148259444,-42505.84369934,0.00034794,7]
[356771480,1743148259967,-320.07447852,0.00033995,2]
[356771481,1743148259978,-4264.4,0.00033995,2]
[356771482,1743148259991,-400.65935079,0.00033995,2]
[356771483,1743148260238,-272.6624,0.00033969,10]
[356771484,1743148260452,-299.40146952,0.00033969,10]
[356771485,1743148260464,-866.98613048,0.00033969,10]
[356771486,1743148260474,-500.0,0.00033969,10]
[356771487,1743148260484,-948.21,0.00033969,10]
[356771488,1743148260494,-418.56810427,0.00033972,7]
[356771489,1743148260504,-500.0,0.00033972,10]
[356771490,1743148260514,-4982.16014314,0.00033995,2]
[356771491,1743148260527,-40032.70602755,0.00033995,2]
[356771492,1743148260538,-418.56810427,0.00034,3]
[356771493,1743148260549,-1439.05,0.00034243,10]
[356771494,1743148260559,-500.0,0.00034243,10]
[356771495,1743148260569,-948.21,0.00034243,10]
[356771496,1743148260580,-1439.05,0.00034517,10]
[356771497,1743148260591,-500.0,0.00034517,10]
[356771498,1743148260743,-948.21,0.00034517,10]
[356771499,1743148260754,-6491.13,0.00034518,10]
[356771500,1743148260764,-1439.05,0.00034791,10]
[356771501,1743148260775,-500.0,0.00034791,10]